bitfinex/quotes_SOLUSD_20240827
["timestamp","ask_amount","ask_price","bid_price","bid_amount"]
[1724801606979,15.179,147.92,147.84,45.0]
[1724801607674,49.09735891,147.92,147.81,33.91835891]
[1724801607860,6.5208,147.9,147.79,40.95675962]
[1724801609461,6.5208,147.9,147.8,0.25098]
[1724801610479,6.5208,147.9,147.81,33.91835891]
[1724801610689,6.5208,147.9,147.82,45.0]
[1724801610875,6.5208,147.9,147.83,33.91835891]
[1724801611180,6.5208,147.9,147.84,45.0]
[1724801611859,6.5208,147.9,147.81,33.91835891]
[1724801612061,6.5208,147.9,147.82,45.0]
[1724801612481,6.5208,147.9,147.81,33.91835891]
[1724801614183,6.5208,147.9,147.82,1.35279169]
[1724801614387,6.5208,147.9,147.83,1.35262455]
[1724801615467,6.5208,147.9,147.82,45.0]
[1724801615865,6.5208,147.9,147.83,1.3525485]
[1724801616288,6.5208,147.9,147.82,45.0]
[1724801617886,6.5208,147.9,147.81,33.91835891]
[1724801618082,15.3655,147.89,147.81,33.91835891]
[1724801618293,15.3655,147.89,147.8,0.12549]
[1724801618472,15.3655,147.89,147.8,45.12549]
[1724801618873,15.3655,147.89,147.77,40.95830762]
[1724801618874,6.73479,147.88,147.77,40.95830762]
[1724801619072,6.73479,147.88,147.77,33.91835891]
[1724801619683,16.3648,147.87,147.77,33.91835891]
[1724801620263,16.3648,147.87,147.78,45.0]
[1724801622872,16.3648,147.87,147.79,33.91835891]
[1724801623072,16.3648,147.87,147.8,46.47679632]
[1724801623466,16.3648,147.87,147.8,45.0]
[1724801624070,16.3648,147.87,147.82,13.54812202]
[1724801624579,16.3648,147.87,147.83,45.0]
[1724801624786,16.3648,147.87,147.84,13.54812202]
[1724801624985,16.3648,147.87,147.84,14.90068816]
[1724801625976,16.3648,147.87,147.85,45.0]
[1724801626499,16.3648,147.87,147.84,13.54812202]
[1724801627382,16.3648,147.87,147.82,13.54812202]
[1724801627575,16.3648,147.87,147.83,45.0]
[1724801627786,16.3648,147.87,147.82,13.54812202]
[1724801632598,16.3648,147.87,147.83,1.35267212]
[1724801633111,16.3648,147.87,147.82,13.54812202]
[1724801639288,16.3648,147.87,147.8,13.54812202]
[1724801640607,16.3648,147.87,147.82,13.54812202]
[1724801641012,16.3648,147.87,147.84,13.54812202]
[1724801642389,16.3648,147.87,147.82,13.54812202]
[1724801642789,16.3648,147.87,147.83,1.35277772]
[1724801643300,16.3648,147.87,147.79,1.94077354]
[1724801643489,29.91292202,147.87,147.78,5.9586251]
[1724801643819,29.91292202,147.87,147.78,19.50674712]
[1724801644004,6.3797,147.86,147.78,5.9586251]
[1724801644196,16.0574,147.84,147.76,13.54812202]
[1724801644404,6.0968,147.83,147.73,3.48730845]
[1724801644716,6.0968,147.83,147.74,13.54812202]
[1724801645208,6.0968,147.83,147.78,13.54812202]
[1724801646110,6.0968,147.83,147.73,3.48730845]
[1724801646111,6.0968,147.83,147.77,33.88729371]
[1724801646293,6.0968,147.83,147.78,46.09844994]
[1724801648711,6.0968,147.83,147.79,33.88729371]
[1724801649017,6.0968,147.83,147.78,45.0]
[1724801649617,6.0968,147.83,147.79,34.01278371]
[1724801649830,6.0968,147.83,147.8,45.0]
[1724801650304,6.0968,147.83,147.77,0.12549]
[1724801650613,6.0968,147.83,147.78,33.88729371]
[1724801650821,6.0968,147.83,147.8,33.88729371]
[1724801650997,6.0968,147.83,147.81,46.35240663]
[1724801651491,6.0968,147.83,147.8,33.88729371]
[1724801651692,6.0968,147.83,147.78,33.88729371]
[1724801651887,6.0968,147.83,147.79,45.0]
[1724801652117,6.0968,147.83,147.76,33.88729371]
[1724801652714,6.0968,147.83,147.72,12.99544645]
[1724801652715,6.0968,147.83,147.74,33.88729371]
[1724801655423,6.0968,147.83,147.78,33.88729371]
[1724801655627,6.0968,147.83,147.79,45.0]
[1724801655920,6.0968,147.83,147.8,1.35303884]
[1724801656289,6.0968,147.83,147.79,45.0]
[1724801657615,6.0968,147.83,147.78,33.88729371]
[1724801658022,6.0968,147.83,147.76,33.88729371]
[1724801661421,6.0968,147.83,147.74,33.88729371]
[1724801661727,6.0968,147.83,147.75,45.0]
[1724801664516,6.0968,147.83,147.75,46.3531425]
[1724801666201,6.0968,147.83,147.76,34.01278371]
[1724801666415,6.0968,147.83,147.77,45.12549]
[1724801667104,6.0968,147.83,147.77,46.47703485]
[1724801667331,6.0968,147.83,147.82,33.88729371]
[1724801667514,6.3072,147.87,147.82,78.88729371]
[1724801667716,6.3072,147.87,147.86,33.88729371]
[1724801667907,16.658,147.88,147.86,33.88729371]
[1724801668134,6.3072,147.91,147.87,45.0]
[1724801668343,15.6489,147.92,147.89,33.88729371]
[1724801668637,6.3261,147.95,147.91,33.88729371]
[1724801669614,6.3261,147.95,147.89,33.88729371]
[1724801669930,6.3261,147.95,147.9,45.0]
[1724801670339,6.3261,147.95,147.89,33.88729371]
[1724801670833,6.3261,147.95,147.87,33.88729371]
[1724801671035,6.3261,147.95,147.88,45.0]
[1724801672630,33.88729371,147.94,147.83,33.88729371]
[1724801672809,33.88729371,147.94,147.81,33.88729371]
[1724801672810,53.88729371,147.94,147.81,33.88729371]
[1724801673428,53.88729371,147.94,147.83,33.88729371]
[1724801673429,20.0,147.94,147.83,33.88729371]
[1724801673613,20.0,147.94,147.84,1.35230543]
[1724801673819,20.0,147.94,147.85,33.88729371]
[1724801674013,20.0,147.94,147.86,1.35212252]
[1724801674741,20.0,147.94,147.86,46.35212252]
[1724801676615,20.0,147.94,147.86,45.0]
[1724801677016,6.3261,147.95,147.86,45.0]
[1724801677256,6.3261,147.95,147.87,0.25098]
[1724801677436,6.3261,147.95,147.87,34.13827371]
[1724801677739,6.3261,147.95,147.89,33.88729371]
[1724801677914,6.3261,147.95,147.9,45.0]
[1724801678110,6.3261,147.95,147.9,46.03503521]
[1724801678312,6.3261,147.95,147.9,45.0]
[1724801678532,6.3261,147.95,147.91,34.13827371]
[1724801678741,6.3261,147.95,147.92,45.0]
[1724801679942,6.3261,147.95,147.87,33.88729371]
[1724801680146,6.3261,147.95,147.88,45.25098]
[1724801680521,6.3261,147.95,147.85,33.88729371]
[1724801680917,6.3261,147.95,147.83,33.88729371]
[1724801681517,6.3261,147.95,147.84,1.06394706]
[1724801681739,6.3261,147.95,147.83,33.88729371]
[1724801682039,6.3261,147.95,147.84,1.06377116]
[1724801683713,6.3261,147.95,147.85,0.25098]
[1724801684212,40.21339371,147.95,147.84,46.35232036]
[1724801684436,15.402,147.93,147.83,34.01278371]
[1724801684619,15.402,147.93,147.85,1.35235579]
[1724801684834,15.402,147.93,147.86,0.25098]
[1724801685747,15.402,147.93,147.86,1.60319637]
[1724801686245,15.402,147.93,147.86,0.25098]
[1724801689737,49.28929371,147.93,147.81,33.88729371]
[1724801690051,6.5281,147.92,147.81,33.88729371]
[1724801691135,6.5281,147.92,147.82,1.35251674]
[1724801691323,6.5281,147.92,147.83,1.35242546]
[1724801691949,6.5281,147.92,147.81,33.88729371]
[1724801692256,6.5281,147.92,147.82,45.25098]
[1724801692463,6.5281,147.92,147.83,1.35214898]
[1724801693235,6.5281,147.92,147.82,45.25098]
[1724801693236,16.0905,147.91,147.82,45.25098]
[1724801693445,6.1564,147.9,147.82,45.0]
[1724801694052,6.1564,147.9,147.79,40.92667687]
[1724801694755,15.1112,147.89,147.79,40.92667687]
[1724801695237,15.1112,147.89,147.8,45.25098]
[1724801696354,15.1112,147.89,147.8,45.0]
[1724801696650,6.1176,147.88,147.77,33.88729371]
[1724801696833,6.1176,147.85,147.75,33.88729371]
[1724801697461,6.1176,147.85,147.74,7.04043848]
[1724801697655,16.4337,147.84,147.74,7.04043848]
[1724801698538,16.4337,147.84,147.74,7.93847507]
[1724801699349,16.4337,147.84,147.75,33.88729371]
[1724801699762,16.4337,147.84,147.76,45.12549]
[1724801699932,16.4337,147.84,147.77,0.89773283]
[1724801700543,16.4337,147.84,147.78,0.89767208]
[1724801701360,16.4337,147.84,147.76,45.0]
[1724801701666,6.0021,147.83,147.75,45.0]
[1724801702167,6.0021,147.83,147.74,45.0]
[1724801702467,6.0021,147.83,147.75,0.12549]
[1724801703247,6.0021,147.83,147.71,5.9586251]
[1724801703248,6.6446,147.81,147.71,39.84591881]
[1724801703459,6.6446,147.81,147.71,33.88729371]
[1724801703661,6.6446,147.81,147.71,40.92558718]
[1724801704354,6.6446,147.81,147.73,33.88729371]
[1724801704569,6.6446,147.81,147.74,1.18920412]
[1724801705151,6.6446,147.81,147.74,46.18920412]
[1724801705670,6.6446,147.81,147.75,0.12549]
[1724801705857,6.6446,147.81,147.75,1.31516464]
[1724801707191,6.6446,147.81,147.77,33.88729371]
[1724801707350,6.6446,147.81,147.78,45.12549]
[1724801707547,7.04049943,147.91,147.79,34.01278371]
[1724801707548,21.5193,147.87,147.79,34.01278371]
[1724801707749,21.5193,147.87,147.8,45.12549]
[1724801709151,21.5193,147.87,147.8,45.0]
[1724801709560,22.0972,147.86,147.8,45.0]
[1724801710061,22.0972,147.86,147.75,33.88729371]
[1724801710062,22.0972,147.85,147.72,5.9586251]
[1724801710270,22.0972,147.83,147.73,33.88729371]
[1724801711363,22.0972,147.83,147.75,33.88729371]
[1724801711771,22.0972,147.83,147.76,45.25098]
[1724801712883,22.0972,147.83,147.76,45.0]
[1724801713183,22.0972,147.83,147.75,45.0]
[1724801713874,22.0972,147.83,147.76,34.13827371]
[1724801714075,22.0972,147.83,147.77,45.0]
[1724801718782,22.0972,147.83,147.72,5.9586251]
[1724801719279,22.0972,147.83,147.73,33.88729371]
[1724801719591,22.0972,147.83,147.74,1.35317005]
[1724801720071,22.0972,147.83,147.74,45.0]
[1724801722664,21.9359,147.82,147.74,45.0]
[1724801722863,21.9359,147.82,147.73,45.0]
[1724801723058,21.9359,147.82,147.72,5.9586251]
[1724801724485,22.1236,147.81,147.72,5.9586251]
[1724801724690,22.5878,147.79,147.71,7.03829347]
[1724801727063,22.5878,147.79,147.72,45.0]
[1724801730368,22.5878,147.79,147.75,33.88729371]
[1724801730687,22.5878,147.79,147.76,45.0]
[1724801730982,22.5878,147.79,147.75,33.88729371]
[1724801731189,22.5878,147.79,147.73,34.13827371]
[1724801731365,22.5878,147.79,147.74,45.0]
[1724801732788,22.5878,147.79,147.73,45.0]
[1724801739784,22.5878,147.79,147.73,46.01590651]
[1724801739988,22.5878,147.79,147.73,45.0]
[1724801742996,22.5878,147.79,147.73,45.85921738]
[1724801743202,22.5878,147.79,147.74,1.35352454]
[1724801744503,22.5878,147.79,147.73,45.0]
[1724801747220,22.5878,147.79,147.72,33.88729371]
[1724801747379,22.5878,147.79,147.71,7.03829347]
[1724801747578,22.5878,147.79,147.71,12.49305881]
[1724801747780,22.5878,147.79,147.71,7.03829347]
[1724801748379,16.6072,147.78,147.71,7.03829347]
[1724801748602,6.3181,147.77,147.71,7.03829347]
[1724801752327,16.6072,147.76,147.71,7.03829347]
[1724801752630,22.9253,147.76,147.71,7.03829347]
[1724801754332,22.9253,147.76,147.71,40.92558718]
[1724801755234,22.9253,147.76,147.72,45.0]
[1724801755427,22.9253,147.76,147.73,35.23792712]
[1724801756718,22.9253,147.76,147.73,33.88729371]
[1724801757529,22.9253,147.76,147.73,35.24082854]
[1724801760816,22.9253,147.76,147.73,33.88729371]
[1724801761025,15.4964,147.8,147.74,46.35343883]
[1724801761215,15.4964,147.8,147.74,45.0]
[1724801761943,15.4964,147.8,147.74,45.42584892]
[1724801762316,15.4964,147.8,147.75,0.69165265]
[1724801764235,15.4964,147.8,147.75,3.30480156]
[1724801764618,15.4964,147.8,147.75,5.45656185]
[1724801764819,15.4964,147.8,147.74,45.0]
[1724801765920,15.4964,147.8,147.75,1.95428677]
[1724801766121,15.4964,147.8,147.72,13.56360394]
[1724801766343,15.4964,147.8,147.73,5.47052845]
[1724801766639,15.4964,147.8,147.74,5.47052845]
[1724801766829,15.4964,147.8,147.75,1.95679658]
[1724801767145,15.4964,147.8,147.74,5.47052845]
[1724801767345,15.4964,147.8,147.75,1.95731236]
[1724801767534,15.4964,147.8,147.74,1.95731236]
[1724801767726,15.4964,147.8,147.74,3.5147424]
[1724801768043,15.4964,147.8,147.75,1.9575067]
[1724801768242,15.4964,147.8,147.74,5.4722861]
[1724801768420,15.4964,147.8,147.74,3.5147424]
[1724801769148,15.4964,147.8,147.74,17.07834634]
[1724801769442,15.4964,147.8,147.75,46.95658487]
[1724801769643,15.4964,147.8,147.75,45.0]
[1724801782848,15.4964,147.8,147.76,13.56360394]
[1724801783055,15.4964,147.8,147.77,45.0]
[1724801783552,21.977,147.84,147.78,13.56360394]
[1724801783782,21.977,147.84,147.79,45.25098]
[1724801784052,21.977,147.84,147.79,46.95014995]
[1724801784239,21.977,147.84,147.79,45.0]
[1724801784952,35.54060394,147.84,147.75,13.56360394]
[1724801785255,35.54060394,147.84,147.76,46.95174346]
[1724801785554,35.54060394,147.84,147.77,1.95174346]
[1724801785934,13.56360394,147.82,147.74,1.95207696]
[1724801786249,21.4982,147.81,147.74,1.95207696]
[1724801788238,21.4982,147.81,147.74,46.95207696]
[1724801788428,21.4982,147.81,147.73,7.0416429]
[1724801788630,13.56360394,147.8,147.72,1.95365218]
[1724801788834,13.56360394,147.8,147.71,7.04416265]
[1724801789027,13.56360394,147.8,147.72,1.95365218]
[1724801790446,35.06180394,147.81,147.73,1.95365218]
[1724801790643,35.06180394,147.81,147.72,1.95365218]
[1724801790844,35.06180394,147.81,147.72,46.95365218]
[1724801791156,35.06180394,147.81,147.73,1.95365218]
[1724801792355,35.06180394,147.81,147.73,1.95373414]
[1724801792753,35.06180394,147.81,147.72,45.0]
[1724801793453,35.06180394,147.81,147.73,0.89937837]
[1724801793635,35.06180394,147.81,147.74,1.02274607]
[1724801794340,35.06180394,147.81,147.72,45.0]
[1724801794542,13.56360394,147.79,147.71,7.04416265]
[1724801795144,22.8307,147.8,147.71,20.60776659]
[1724801795351,20.0,147.79,147.71,20.60776659]
[1724801795548,22.8307,147.8,147.71,20.60776659]
[1724801795754,22.8307,147.8,147.72,45.0]
[1724801797344,22.8307,147.8,147.73,14.91710391]
[1724801797543,22.8307,147.8,147.75,13.56360394]
[1724801798059,22.8307,147.8,147.73,13.56360394]
[1724801798238,22.8307,147.8,147.74,45.0]
[1724801799259,22.8307,147.8,147.74,46.35337134]
[1724801799461,22.8307,147.8,147.77,13.56360394]
[1724801799764,22.8793,147.86,147.79,13.56360394]
[1724801800535,13.56360394,147.85,147.75,13.56360394]
[1724801800734,13.56360394,147.85,147.74,58.56360394]
[1724801800937,13.56360394,147.83,147.74,58.56360394]
[1724801801139,13.56360394,147.83,147.74,13.56360394]
[1724801801358,22.8793,147.82,147.74,13.56360394]
[1724801803661,22.8793,147.82,147.72,20.60779232]
[1724801803873,22.8793,147.82,147.73,45.0]
[1724801804561,0.25098,147.81,147.73,45.0]
[1724801804795,13.81458394,147.81,147.72,20.60779232]
[1724801805665,21.5437,147.78,147.72,7.04418838]
[1724801819373,21.5437,147.78,147.72,20.60779232]
[1724801823680,21.5437,147.78,147.72,7.04418838]
[1724801825375,13.56360394,147.77,147.72,7.04418838]
[1724801825685,13.56360394,147.77,147.69,13.56360394]
[1724801825864,13.56360394,147.77,147.69,20.61111205]
[1724801826773,13.56360394,147.77,147.7,45.0]
[1724801827862,21.5437,147.78,147.7,45.0]
[1724801829678,0.25098,147.77,147.7,45.0]
[1724801830970,13.81458394,147.77,147.7,45.0]
[1724801831183,22.0744,147.74,147.66,5.9586251]
[1724801831377,22.0744,147.74,147.65,13.56360394]
[1724801831697,22.0744,147.74,147.63,6.6974626]
[1724801831698,29.53050394,147.68,147.63,13.27789135]
[1724801831990,29.53050394,147.68,147.58,6.2308095]
[1724801832167,29.53050394,147.68,147.59,13.56360394]
[1724801832486,29.53050394,147.68,147.57,13.56360394]
[1724801833272,0.12549,147.67,147.57,13.56360394]
[1724801833488,29.53050394,147.68,147.59,13.56360394]
[1724801833664,15.9669,147.68,147.61,13.56360394]
[1724801834670,15.9669,147.68,147.59,13.56360394]
[1724801834882,15.9669,147.68,147.6,45.0]
[1724801835482,15.9669,147.68,147.59,13.56360394]
[1724801835689,15.9669,147.68,147.61,13.56360394]
[1724801836787,15.9669,147.68,147.62,45.0]
[1724801838273,15.9669,147.68,147.59,13.56360394]
[1724801838581,15.9669,147.68,147.6,45.0]
[1724801838774,15.9669,147.68,147.61,13.81458394]
[1724801839086,15.9669,147.68,147.62,45.0]
[1724801839592,15.9669,147.68,147.63,13.56360394]
[1724801839896,15.9669,147.68,147.64,45.0]
[1724801840266,15.9669,147.68,147.65,13.56360394]
[1724801840584,15.9669,147.68,147.66,45.0]
[1724801841284,15.9669,147.68,147.63,13.56360394]
[1724801841494,15.9669,147.68,147.64,45.0]
[1724801841863,15.9669,147.68,147.6,13.56360394]
[1724801842470,15.9669,147.68,147.62,13.56360394]
[1724801843401,15.9669,147.68,147.63,45.0]
[1724801844281,15.9669,147.68,147.64,13.56360394]
[1724801844469,15.9669,147.68,147.65,45.0]
[1724801845773,15.9669,147.68,147.62,13.56360394]
[1724801846778,15.9669,147.68,147.56,7.0484843]
[1724801846978,29.53050394,147.68,147.58,13.56360394]
[1724801848702,15.9669,147.68,147.6,13.56360394]
[1724801849022,15.9669,147.68,147.64,13.56360394]
[1724801849771,15.9669,147.68,147.65,45.0]
[1724801850989,15.9669,147.68,147.62,13.56360394]
[1724801851192,15.9669,147.68,147.63,45.0]
[1724801853391,15.9669,147.68,147.57,33.96011604]
[1724801854692,15.9669,147.68,147.59,33.96011604]
[1724801854994,15.9669,147.68,147.6,45.12549]
[1724801855189,15.9669,147.68,147.61,0.12549]
[1724801856587,6.3667,147.67,147.6,45.0]
[1724801856789,6.3667,147.67,147.56,38.8075038]
[1724801857097,6.3667,147.67,147.58,33.96011604]
[1724801857994,6.3667,147.67,147.59,0.12549]
[1724801858496,6.3667,147.67,147.58,0.25098]
[1724801858706,6.3667,147.67,147.58,34.21109604]
[1724801859004,6.3667,147.67,147.59,45.0]
[1724801859183,6.3667,147.67,147.6,0.25098]
[1724801859499,6.3667,147.67,147.6,0.12549]
[1724801860694,15.1938,147.66,147.56,4.84738776]
[1724801861299,15.1938,147.66,147.56,6.80709141]
[1724801861487,6.2388,147.64,147.54,7.05149339]
[1724801861682,6.2388,147.64,147.53,39.43979884]
[1724801861895,6.2388,147.64,147.54,1.96102486]
[1724801863198,6.2388,147.64,147.54,46.96102486]
[1724801863388,6.2388,147.64,147.54,45.0]
[1724801863792,6.2388,147.64,147.55,0.12549]
[1724801863987,6.2388,147.64,147.55,0.25098]
[1724801864383,16.032,147.62,147.54,45.0]
[1724801864846,33.96011604,147.59,147.51,7.05242197]
[1724801864983,33.96011604,147.59,147.5,4.58267589]
[1724801865297,15.1532,147.57,147.5,4.58267589]
[1724801866101,15.1532,147.57,147.48,5.48194523]
[1724801866298,15.1532,147.57,147.51,6.44612283]
[1724801867181,15.1532,147.57,147.51,6.92566947]
[1724801867383,15.1532,147.57,147.47,7.05540946]
[1724801867599,15.1532,147.57,147.48,6.44612283]
[1724801867791,15.1532,147.57,147.48,8.41061175]
[1724801868078,15.1532,147.57,147.49,33.96011604]
[1724801868300,15.1532,147.57,147.51,33.96011604]
[1724801868808,15.1532,147.57,147.52,45.25098]
[1724801869407,15.1532,147.57,147.53,1.35268738]
[1724801869785,15.1532,147.57,147.52,45.25098]
[1724801870300,15.1532,147.57,147.52,45.0]
[1724801880307,15.1532,147.57,147.49,33.96011604]
[1724801881814,15.1532,147.57,147.5,45.0]
[1724801885114,15.1532,147.57,147.51,33.96011604]
[1724801885416,15.1532,147.57,147.52,45.0]
[1724801885925,15.1532,147.57,147.53,1.35547658]
[1724801886507,15.1532,147.57,147.52,45.0]
[1724801889709,15.1532,147.57,147.49,33.96011604]
[1724801891008,15.1532,147.57,147.5,45.0]
[1724801891826,15.1532,147.57,147.49,45.0]
[1724801893506,15.1532,147.57,147.5,33.96011604]
[1724801893723,6.3278,147.56,147.51,45.0]
[1724801894806,49.60653456,147.62,147.55,67.92023208]
[1724801894807,8.87211852,147.62,147.55,67.92023208]
[1724801895003,6.539,147.68,147.57,16.0885]
[1724801895220,6.539,147.72,147.58,61.16204995]
[1724801895426,15.4694,147.75,147.71,33.96011604]
[1724801895603,15.4694,147.75,147.73,33.96011604]
[1724801896007,15.4694,147.75,147.73,13.56505523]
[1724801896414,15.4694,147.75,147.71,1.22743779]
[1724801896623,15.4694,147.75,147.65,8.66602573]
[1724801896624,15.4694,147.75,147.69,13.56505523]
[1724801896825,15.4694,147.75,147.67,13.56505523]
[1724801897129,15.4694,147.75,147.68,45.0]
[1724801897623,15.4694,147.75,147.69,13.56505523]
[1724801898029,15.4694,147.75,147.68,45.0]
[1724801898229,15.4694,147.75,147.67,45.0]
[1724801899845,15.4694,147.75,147.68,33.9403812]
[1724801901537,15.4694,147.75,147.69,45.12549]
[1724801901738,6.5446,147.76,147.73,33.9403812]
[1724801901942,6.5446,147.76,147.75,33.9403812]
[1724801902242,6.5446,147.76,147.75,78.9403812]
[1724801905732,16.0924,147.79,147.75,78.9403812]
[1724801906120,16.0924,147.79,147.64,6.2522]
[1724801906326,20.0,147.78,147.7,33.9403812]
[1724801907030,20.0,147.78,147.72,33.9403812]
[1724801907747,20.0,147.78,147.64,6.2522]
[1724801907932,20.0,147.78,147.69,33.9403812]
[1724801908244,16.0924,147.79,147.71,33.9403812]
[1724801908448,16.0924,147.79,147.73,33.9403812]
[1724801908942,16.0924,147.79,147.74,45.0]
[1724801909144,16.0924,147.79,147.73,33.9403812]
[1724801910630,16.0924,147.79,147.75,33.9403812]
[1724801912550,16.0924,147.79,147.77,33.9403812]
[1724801914240,22.6207,147.83,147.78,46.35327324]
[1724801914541,22.6207,147.83,147.79,33.9403812]
[1724801914753,22.6207,147.83,147.8,1.35297047]
[1724801914925,22.6207,147.83,147.79,35.29335167]
[1724801915354,22.1207,147.83,147.8,1.35287892]
[1724801915739,6.1827,147.92,147.81,33.9403812]
[1724801915936,6.1827,147.92,147.82,45.0]
[1724801916142,6.1827,147.92,147.82,46.35282598]
[1724801916431,6.1827,147.92,147.79,33.9403812]
[1724801916845,6.1827,147.92,147.8,45.0]
[1724801917046,6.1827,147.9,147.8,45.0]
[1724801917247,20.25098,147.89,147.77,33.9403812]
[1724801917428,20.25098,147.89,147.78,45.0]
[1724801918059,20.25098,147.89,147.79,33.9403812]
[1724801918352,16.1165,147.88,147.81,33.9403812]
[1724801918730,20.0,147.87,147.81,33.9403812]
[1724801920751,20.0,147.87,147.78,45.0]
[1724801921948,0.12549,147.86,147.78,45.0]
[1724801922131,6.6408,147.85,147.77,33.9403812]
[1724801922335,0.25098,147.84,147.75,33.9403812]
[1724801922536,6.6408,147.85,147.79,33.9403812]
[1724801922835,6.6408,147.85,147.81,33.9403812]
[1724801923638,6.6408,147.85,147.77,33.9403812]
[1724801923639,6.6408,147.85,147.79,33.9403812]
[1724801923950,6.6408,147.85,147.8,45.0]
[1724801925243,6.6408,147.85,147.81,33.9403812]
[1724801929357,6.6408,147.85,147.82,45.0]
[1724801932236,16.1165,147.88,147.83,33.9403812]
[1724801932446,16.1165,147.88,147.84,45.0]
[1724801933041,16.1165,147.88,147.81,33.9403812]
[1724801933356,16.1165,147.88,147.82,45.0]
[1724801935142,6.4816,147.89,147.83,33.9403812]
[1724801935347,6.4816,147.89,147.85,33.9403812]
[1724801935847,6.4816,147.89,147.86,45.0]
[1724801936434,6.4816,147.89,147.83,33.9403812]
[1724801936638,6.4816,147.89,147.83,33.4403812]
[1724801936843,6.4816,147.89,147.84,45.0]
[1724801938149,6.4816,147.89,147.75,14.1821717]
[1724801938339,6.4816,147.89,147.79,33.9403812]
[1724801938543,6.4816,147.89,147.81,33.9403812]
[1724801939652,6.4816,147.89,147.82,45.0]
[1724801940262,6.4816,147.89,147.85,33.9403812]
[1724801942770,6.4816,147.89,147.86,45.0]
[1724801946741,15.7179,147.92,147.87,33.9403812]
[1724801948150,15.7179,147.92,147.86,45.0]
[1724801950250,15.7179,147.92,147.81,33.9403812]
[1724801950452,0.25098,147.91,147.81,33.9403812]
[1724801951345,6.2222,147.9,147.81,33.9403812]
[1724801951862,6.2222,147.9,147.82,45.0]
[1724801952579,6.2222,147.9,147.81,33.9403812]
[1724801952748,0.12549,147.89,147.81,33.9403812]
[1724801952944,0.12549,147.89,147.79,33.9403812]
[1724801952945,0.25098,147.89,147.79,33.9403812]
[1724801953149,15.4758,147.88,147.79,33.9403812]
[1724801953456,15.4758,147.88,147.81,33.9403812]
[1724801953863,15.4758,147.88,147.77,49.8635812]
[1724801953864,15.4758,147.88,147.83,33.9403812]
[1724801961052,15.4758,147.88,147.85,33.9403812]
[1724801961362,15.4758,147.88,147.86,45.0]
[1724801961747,6.2222,147.9,147.86,46.00128839]
[1724801961958,6.2222,147.9,147.88,33.9403812]
[1724801965575,6.2222,147.9,147.86,78.9403812]
[1724801967255,6.2222,147.9,147.88,33.9403812]
[1724801967450,15.0859,147.92,147.88,33.9403812]
[1724801967662,6.5931,147.98,147.9,33.9403812]
[1724801967974,6.5931,147.98,147.96,33.9403812]
[1724801968184,6.5931,147.98,147.94,33.9403812]
[1724801968850,6.5931,147.98,147.9,33.9403812]
[1724801969074,6.5931,147.98,147.91,45.0]
[1724801969771,16.2553,147.97,147.91,45.0]
[1724801970277,16.2553,147.97,147.9,33.9403812]
[1724801971168,16.2553,147.97,147.88,33.9403812]
[1724801971371,16.2553,147.97,147.89,45.0]
[1724801971372,0.25098,147.96,147.89,45.0]
[1724801971683,0.25098,147.96,147.91,33.9403812]
[1724801972478,16.2553,147.97,147.91,33.9403812]
[1724801973167,16.2553,147.97,147.89,45.0]
[1724801973361,16.2553,147.97,147.93,33.9403812]
[1724801973568,16.2553,147.97,147.9,1.35197019]
[1724801973768,16.2553,147.97,147.94,33.9403812]
[1724801974279,16.2553,147.97,147.96,33.9403812]
[1724801974578,6.5931,147.98,147.96,33.9403812]
[1724801974980,6.5931,147.98,147.94,33.9403812]
[1724801975481,15.7686,148.01,147.94,33.9403812]
[1724801975785,15.7686,148.01,147.96,33.9403812]
[1724801977078,15.7686,148.01,147.95,45.0]
[1724801978154,15.7686,148.01,147.92,33.9403812]
[1724801978486,20.25098,148.0,147.93,45.0]
[1724801978671,20.25098,148.0,147.92,33.9403812]
[1724801983482,6.3051,147.99,147.9,33.9403812]